Workbook

Sheet ORÇAMENTO
A1: <---- NUMERAR SERVIÇOS PARA CPU | C1: Ministério do Desenvolvimento Regional
C2: Companhia de Desenvolvimento dos Vales do São Francisco e do Parnaíba
C3: 1ª Superintendência Regional
B5: OBRA: | C5: PAVIMENTAÇÃO EM POLIÉDRICO - COMUNIDADE DOS PEROBAS - PERDIGÃO / MG
B6: DATA: | C6: OUTUBRO/2022 | G6: BDI Serviços: | I6: ='BDI SERV'!D31/100 -> 0.1851
B7: PRAZO DE EXECUÇÃO: 90 DIAS
B8: ITEM | C8: DISCRIMINAÇÃO | D8: REFER. | E8: UNID. | F8: QUANT. | G8: P. UNITÁRIO | H8: P.UNIT.C/ BDI | I8: P. TOTAL
A9: A | B9: 1 | C9: SERVIÇOS PRELIMINARES | I9: =SUM(I10:I14) -> 27378.93
A10: 1 | B10: 1.1 | C10: MOBILIZAÇÃO E DESMOBILIZAÇÃO | D10: CPU | E10: GL | F10: 1 | G10: =VLOOKUP(A10,CPU!$A$1:$N$4382,9) -> 2163.84 | H10: =VLOOKUP(A10,CPU!$A$1:$N$4382,10) -> 2564.366784 | I10: =ROUND(F10*H10,2) -> 2564.37
A11: 2 | B11: 1.2 | C11: ADMINISTRAÇÃO LOCAL | D11: CPU | E11: GL | F11: 1 | G11: =VLOOKUP(A11,CPU!$A$1:$N$4382,9) -> 16356.76357 | H11: =VLOOKUP(A11,CPU!$A$1:$N$4382,10) -> 19384.4105 | I11: =ROUND(F11*H11,2) -> 19384.41
A12: 3 | B12: 1.3 | C12: CANTEIRO DE OBRAS | D12: CPU | E12: GL | F12: 1 | G12: =VLOOKUP(A12,CPU!$A$1:$N$4382,9) -> 2758.5 | H12: =VLOOKUP(A12,CPU!$A$1:$N$4382,10) -> 3269.09835 | I12: =ROUND(F12*H12,2) -> 3269.1
A13: 4 | B13: 1.4 | C13: PLACA DE OBRA EM CHAPA DE AÇO GALVANIZADO | D13: 74209/001 | E13: M2 | F13: 2 | G13: =VLOOKUP(A13,CPU!$A$1:$N$4382,9) -> 594 | H13: =VLOOKUP(A13,CPU!$A$1:$N$4382,10) -> 703.9494 | I13: =ROUND(F13*H13,2) -> 1407.9
A14: 5 | B14: 1.5 | C14: LOCAÇÃO DE PAVIMENTAÇÃO | D14: 99064 | E14: M | F14: 993 | G14: =VLOOKUP(A14,CPU!$A$1:$N$4382,9) -> 0.64 | H14: =VLOOKUP(A14,CPU!$A$1:$N$4382,10) -> 0.758464 | I14: =ROUND(F14*H14,2) -> 753.15
A15: B | B15: 2 | C15: PAVIMENTAÇÃO | I15: =SUM(I16:I21) -> 381612.62
A16: 6 | B16: 2.1 | C16: ESCAVAÇÃO HORIZONTAL EM SOLO DE 1A CATEGORIA | D16: 101116 | E16: M3 | F16: 2090.004 | G16: =VLOOKUP(A16,CPU!$A$1:$N$4382,9) -> 2.14 | H16: =VLOOKUP(A16,CPU!$A$1:$N$4382,10) -> 2.536114 | I16: =ROUND(F16*H16,2) -> 5300.49
A17: 7 | B17: 2.2 | C17: CARGA, MANOBRA E DESCARGA DE SOLOS E MATERIAIS GRANULARES EM CAMINHÃO BASCULANTE - DESCARGA LIVRE | D17: 100976 | E17: M3 | F17: 2090.004 | G17: =VLOOKUP(A17,CPU!$A$1:$N$4382,9) -> 3.83 | H17: =VLOOKUP(A17,CPU!$A$1:$N$4382,10) -> 4.538933 | I17: =ROUND(F17*H17,2) -> 9486.39
A18: 8 | B18: 2.3 | C18: REGULARIZAÇÃO E COMPACTAÇÃO DE SUBLEITO | D18: 100576 | E18: M2 | F18: 6950 | G18: =VLOOKUP(A18,CPU!$A$1:$N$4382,9) -> 2.22 | H18: =VLOOKUP(A18,CPU!$A$1:$N$4382,10) -> 2.630922 | I18: =ROUND(F18*H18,2) -> 18284.91
B19: 2.4 | C19: AQUISIÇÃO DE CASCALHO PARA EXECUÇÃO DA BASE | D19: - | E19: M3 | F19: 1049.997 | G19: A CARGO DA PREFEITURA | I19: 0
A20: 9 | B20: 2.5 | C20: EXECUÇÃO E COMPACTAÇÃO DE BASE E OU SUB BASE PARA PAVIMENTAÇÃO DE CASCALHO - EXCLUSIVE SOLO, ESCAVAÇÃO, CARGA E TRANSPORTE. | D20: 96388 | E20: M3 | F20: 1049.997 | G20: =VLOOKUP(A20,CPU!$A$1:$N$4382,9) -> 10.57 | H20: =VLOOKUP(A20,CPU!$A$1:$N$4382,10) -> 12.526507 | I20: =ROUND(F20*H20,2) -> 13152.79
A21: 10 | B21: 2.6 | C21: EXECUÇÃO DE PAVIMENTO EM PEDRAS POLIÉDRICAS, REJUNTAMENTO COM PÓ DE PEDRA | D21: 101170 | E21: M2 | F21: 6950 | G21: =VLOOKUP(A21,CPU!$A$1:$N$4382,9) -> 40.72 | H21: =VLOOKUP(A21,CPU!$A$1:$N$4382,10) -> 48.257272 | I21: 335388.04
A22: C | B22: 3 | C22: TRANSPORTE DE MATERIAIS | I22: =SUM(I23:I24) -> 57173.72
A23: 11 | B23: 3.1 | C23: TRANSPORTE COM CAMINHÃO BASCULANTE, EM VIA EM REVESTIMENTO PRIMÁRIO | D23: 95426 | E23: M3XKM | F23: 3140.001 | G23: =VLOOKUP(A23,CPU!$A$1:$N$4382,9) -> 1.02 | H23: =VLOOKUP(A23,CPU!$A$1:$N$4382,10) -> 1.208802 | I23: =ROUND(F23*H23,2) -> 3795.64
A24: 12 | B24: 3.2 | C24: TRANSPORTE COM CAMINHÃO BASCULANTE, EM VIA PAVIMENTADA | D24: 95427 | E24: M3XKM | F24: 61699.99502 | G24: =VLOOKUP(A24,CPU!$A$1:$N$4382,9) -> 0.73 | H24: =VLOOKUP(A24,CPU!$A$1:$N$4382,10) -> 0.865123 | I24: =ROUND(F24*H24,2) -> 53378.08
A25: D | B25: 4 | C25: DRENAGEM E OBRAS COMPLEMENTARES | I25: =SUM(I26:I26) -> 112879.07
A26: 13 | B26: 4.1 | C26: GUIA (MEIO-FIO) E SARJETA CONJUGADOS DE CONCRETO, MOLDADA IN LOCO COM EXTRUSORA, 45 CM BASE (15 CM DA GUIA + 30 CM DA SARJETA) X 22 CM ALTURA | D26: 94267 | E26: M | F26: 1986 | G26: =VLOOKUP(A26,CPU!$A$1:$N$4382,9) -> 47.96 | H26: =VLOOKUP(A26,CPU!$A$1:$N$4382,10) -> 56.837396 | I26: =ROUND(F26*H26,2) -> 112879.07
B27: TOTAL GERAL DA OBRA COM BDI | I27: =SUM(I9,I15,I22,I25) -> 579044.34

Sheet CPU
A1: 1 | B1: CODEVASF | E1: COMPOSIÇÃO DE PREÇO UNITÁRIO | I1: =H10 -> 2163.84 | J1: =H12 -> 2564.366784 | K1: BDI CALCULADO: | M1: =ORÇAMENTO!I6 -> 0.1851
B2: OBRA: | C2: =ORÇAMENTO!C5 -> PAVIMENTAÇÃO EM POLIÉDRICO - COMUNIDADE DOS PEROBAS - PERDIGÃO / MG | G2: DATA: | H2: =ORÇAMENTO!C6 -> OUTUBRO/2022
B3: SERVIÇO: | C3: =VLOOKUP(A1,ORÇAMENTO!A10:I26,3) -> MOBILIZAÇÃO E DESMOBILIZAÇÃO | E3: Referência: | F3: =VLOOKUP(A1,ORÇAMENTO!A10:I26,4) -> CPU | G3: UNIDADE: | H3: =VLOOKUP(A1,ORÇAMENTO!A10:I26,5) -> GL
B5: TIPO ITEM | C5: CODIGO ITEM | D5: DESCRIÇÃO ITEM | E5: UNIDADE ITEM | F5: COEFICIENTE | G5: PRECO UNITARIO | H5: CUSTO TOTAL
B6: COMPOSICAO | C6: 5824 | D6: CAMINHÃO TOCO, PBT 16.000 KG, CARGA ÚTIL MÁX. 10.685 KG, DIST. ENTRE EIXOS 4,8 M, POTÊNCIA 189 CV, INCLUSIVE CARROCERIA FIXA ABERTA DE MADEIRA P/ TRANSPORTE GERAL DE CARGA SECA | E6: CHP | F6: 8 | G6: 215.9 | H6: =ROUNDDOWN(F6*G6,2) -> 1727.2
B7: COMPOSICAO | C7: 5826 | D7: CAMINHÃO TOCO, PBT 16.000 KG, CARGA ÚTIL MÁX. 10.685 KG, DIST. ENTRE EIXOS 4,8 M, POTÊNCIA 189 CV, INCLUSIVE CARROCERIA FIXA ABERTA DE MADEIRA P/ TRANSPORTE GERAL DE CARGA SECA | E7: CHI | F7: 8 | G7: 45.57 | H7: =ROUNDDOWN(F7*G7,2) -> 364.56
B8: COMPOSIÇÃO | C8: 88316 | D8: SERVENTE COM ENCARGOS COMPLEMENTARES | E8: H | F8: 4 | G8: 18.02 | H8: 72.08
B9: PRODUÇÃO DA EQUIPE | E9: 1 | F9: CUSTO | H9: =SUM(H6:H8) -> 2163.84
B10: TOTAL | H10: =H9/E9 -> 2163.84
B11: BDI % | H11: =1+$M$1 -> 1.1851
B12: TOTAL DO SERVIÇO - R$ | H12: =H10*H11 -> 2564.366784
A14: =A1+1 -> 2 | B14: CODEVASF | E14: COMPOSIÇÃO DE PREÇO UNITÁRIO | I14: =H27 -> 16356.76357 | J14: =H29 -> 19384.4105
B15: OBRA: | C15: =$C$2 -> PAVIMENTAÇÃO EM POLIÉDRICO - COMUNIDADE DOS PEROBAS - PERDIGÃO / MG | G15: DATA: | H15: =$H$2 -> OUTUBRO/2022
B16: SERVIÇO: | C16: =VLOOKUP(A14,ORÇAMENTO!$A$10:$I$26,3) -> ADMINISTRAÇÃO LOCAL | E16: SINAPI | F16: CPU | G16: UNIDADE: | H16: =VLOOKUP(A14,ORÇAMENTO!$A$10:$I$26,5) -> GL
B18: TIPO ITEM | C18: CODIGO ITEM | D18: DESCRIÇÃO ITEM | E18: UNIDADE ITEM | F18: COEFICIENTE | G18: PRECO UNITARIO | H18: CUSTO TOTAL
B19: INSUMO | C19: 14250 | D19: ENERGIA ELÉTRICA | E19: kwh | F19: 72 | G19: 0.74875 | H19: =ROUNDDOWN(F19*G19,2) -> 53.91
B20: INSUMO | C20: 14583 | D20: ÁGUA/ESGOTO | E20: m³ | F20: 4 | G20: 21.9995 | H20: =ROUNDDOWN(F20*G20,2) -> 87.99
B21: COTAÇÃO | C21: MERC. | D21: TELEFONE (PLANO CONTROLE) | E21: UNID | F21: 1 | G21: 60 | H21: 60
B22: COMPOSICAO | C22: 90777 | D22: Engenheiro Civil Júnior com encargos complementares | E22: H | F22: 22 | G22: 100.51 | H22: 2211.22
B23: COMPOSICAO | C23: 90776 | D23: Encarregado Geral com encargos complementares | E23: H | F23: 55 | G23: 39.8 | H23: 2189
B24: COMPOSICAO | C24: 88321 | D24: Tecnico de Laboratório com encargos complementares | E24: H | F24: 22 | G24: 38.64 | H24: 850.08
B26: PRODUÇÃO DA EQUIPE | E26: 0.33333 | F26: CUSTO | H26: =SUM(H19:H25) -> 5452.2
B27: TOTAL | H27: =H26/E26 -> 16356.76357
B28: BDI % | H28: =1+$M$1 -> 1.1851
B29: TOTAL DO SERVIÇO - R$ | H29: =H27*H28+0.01 -> 19384.4105
A31: =A14+1 -> 3 | B31: CODEVASF | E31: COMPOSIÇÃO DE PREÇO UNITÁRIO | I31: =H38 -> 2758.5 | J31: =H40 -> 3269.09835
B32: OBRA: | C32: =$C$2 -> PAVIMENTAÇÃO EM POLIÉDRICO - COMUNIDADE DOS PEROBAS - PERDIGÃO / MG | G32: DATA: | H32: =$H$2 -> OUTUBRO/2022
B33: SERVIÇO: | C33: =VLOOKUP(A31,ORÇAMENTO!$A$10:$I$26,3) -> CANTEIRO DE OBRAS | E33: SINAPI | F33: =VLOOKUP(A31,ORÇAMENTO!$A$10:$I$26,4) -> CPU | G33: UNIDADE: | H33: =VLOOKUP(A31,ORÇAMENTO!$A$10:$I$26,5) -> GL
B35: TIPO ITEM | C35: CODIGO ITEM | D35: DESCRIÇÃO ITEM | E35: UNIDADE ITEM | F35: COEFICIENTE | G35: PRECO UNITARIO | H35: CUSTO TOTAL
B36: COTAÇÃO | C36: 10775 | D36: ALUGUEL DE IMÓVEL OU CONTEINER QUE ATENDA AOS REQUISITOS MÍNIMOS PARA INSTALAÇÃO DO CANTEIRO DE OBRAS | E36: MÊS | F36: 3 | G36: 919.5 | H36: =ROUNDDOWN(F36*G36,2) -> 2758.5
B37: PRODUÇÃO DA EQUIPE | E37: 1 | F37: CUSTO | H37: =SUM(H36:H36) -> 2758.5
B38: TOTAL | H38: =H37/E37 -> 2758.5
B39: BDI % | H39: =1+$M$1 -> 1.1851
B40: TOTAL DO SERVIÇO - R$ | H40: =H38*H39 -> 3269.09835
A42: =A31+1 -> 4 | B42: CODEVASF | E42: COMPOSIÇÃO DE PREÇO UNITÁRIO | I42: =H55 -> 594 | J42: =H57 -> 703.9494
B43: OBRA: | C43: =$C$2 -> PAVIMENTAÇÃO EM POLIÉDRICO - COMUNIDADE DOS PEROBAS - PERDIGÃO / MG | G43: DATA: | H43: =$H$2 -> OUTUBRO/2022
B44: SERVIÇO: | C44: =VLOOKUP(A42,ORÇAMENTO!$A$10:$I$26,3) -> PLACA DE OBRA EM CHAPA DE AÇO GALVANIZADO | E44: SINAPI | F44: =VLOOKUP(A42,ORÇAMENTO!$A$10:$I$26,4) -> 74209/001 | G44: UNIDADE: | H44: =VLOOKUP(A42,ORÇAMENTO!$A$10:$I$26,5) -> M2
B46: TIPO ITEM | C46: CODIGO ITEM | D46: DESCRIÇÃO ITEM | E46: UNIDADE ITEM | F46: COEFICIENTE | G46: PRECO UNITARIO | H46: CUSTO TOTAL
B47: INSUMO | C47: 4417 | D47: SARRAFO DE MADEIRA NAO APARELHADA *2,5 X 7* CM, MACARANDUBA, ANGELIM OU EQUIVALENTE DA REGIAO | E47: M | F47: 1,0000000 | G47: 12.458 | H47: =ROUNDDOWN(F47*G47,2) -> 12.45
B48: INSUMO | C48: 4491 | D48: PONTALETE DE MADEIRA NAO APARELHADA *7,5 X 7,5* CM (3 X 3 ") PINUS, MISTA OU EQUIVALENTE DA REGIAO | E48: M | F48: 4,0000000 | G48: 8.57 | H48: =ROUNDDOWN(F48*G48,2) -> 34.28
B49: INSUMO | C49: 4813 | D49: PLACA DE OBRA (PARA CONSTRUCAO CIVIL) EM CHAPA GALVANIZADA *N. 22*, ADESIVADA, DE *2,4 X 1,2* M | E49: M2 | F49: 1,0000000 | G49: 480 | H49: 480
B50: INSUMO | C50: 5075 | D50: PREGO DE ACO POLIDO COM CABECA 18 X 30 (2 3/4 X 10) | E50: KG | F50: 0,1100000 | G50: 23.4 | H50: 2.57
B51: COMPOSICAO | C51: 88262 | D51: CARPINTEIRO DE FORMAS COM ENCARGOS COMPLEMENTARES | E51: H | F51: 1,0000000 | G51: 24.86 | H51: 24.86
B52: COMPOSICAO | C52: 88316 | D52: SERVENTE COM ENCARGOS COMPLEMENTARES | E52: H | F52: 2,0000000 | G52: 18.02 | H52: 36.04
B53: COMPOSICAO | C53: 94962 | D53: CONCRETO MAGRO PARA LASTRO, TRAÇO 1:4,5:4,5 (CIMENTO/ AREIA MÉDIA/ BRITA 1) - PREPARO MECÂNICO COM BETONEIRA 400 L | E53: M3 | F53: 0,0100000 | G53: 380.33 | H53: 3.8
B54: PRODUÇÃO DA EQUIPE | E54: 1 | F54: CUSTO | H54: =SUM(H47:H53) -> 594
B55: TOTAL | H55: =H54/E54 -> 594
B56: BDI % | H56: =1+$M$1 -> 1.1851
B57: TOTAL DO SERVIÇO - R$ | H57: =H55*H56 -> 703.9494
A59: =A42+1 -> 5 | B59: CODEVASF | E59: COMPOSIÇÃO DE PREÇO UNITÁRIO | I59: =H66 -> 0.64 | J59: =H68 -> 0.758464
B60: OBRA: | C60: =$C$2 -> PAVIMENTAÇÃO EM POLIÉDRICO - COMUNIDADE DOS PEROBAS - PERDIGÃO / MG | G60: DATA: | H60: =$H$2 -> OUTUBRO/2022
B61: SERVIÇO: | C61: =VLOOKUP(A59,ORÇAMENTO!$A$10:$I$26,3) -> LOCAÇÃO DE PAVIMENTAÇÃO | E61: SINAPI | F61: =VLOOKUP(A59,ORÇAMENTO!$A$10:$I$26,4) -> 99064 | G61: UNIDADE: | H61: =VLOOKUP(A59,ORÇAMENTO!$A$10:$I$26,5) -> M
B63: TIPO ITEM | C63: CODIGO ITEM | D63: DESCRIÇÃO ITEM | E63: UNIDADE ITEM | F63: COEFICIENTE | G63: PRECO UNITARIO | H63: CUSTO TOTAL
B64: COMPOSICAO | C64: 99058 | D64: LOCAÇÃO DE PONTO PARA REFERÊNCIA TOPOGRÁFICA | E64: UN | F64: 0,0500000 | G64: 12.96 | H64: =ROUNDDOWN(F64*G64,2) -> 0.64
B65: PRODUÇÃO DA EQUIPE | E65: 1 | F65: CUSTO | H65: =SUM(H64:H64) -> 0.64
B66: TOTAL | H66: =H65/E65 -> 0.64
B67: BDI % | H67: =1+$M$1 -> 1.1851
B68: TOTAL DO SERVIÇO - R$ | H68: =H66*H67 -> 0.758464
A70: =A59+1 -> 6 | B70: CODEVASF | E70: COMPOSIÇÃO DE PREÇO UNITÁRIO | I70: =H79 -> 2.14 | J70: =H81 -> 2.536114
B71: OBRA: | C71: =$C$2 -> PAVIMENTAÇÃO EM POLIÉDRICO - COMUNIDADE DOS PEROBAS - PERDIGÃO / MG | G71: DATA: | H71: =$H$2 -> OUTUBRO/2022
B72: SERVIÇO: | C72: =VLOOKUP(A70,ORÇAMENTO!$A$10:$I$26,3) -> ESCAVAÇÃO HORIZONTAL EM SOLO DE 1A CATEGORIA | E72: SINAPI | F72: =VLOOKUP(A70,ORÇAMENTO!$A$10:$I$26,4) -> 101116 | G72: UNIDADE: | H72: =VLOOKUP(A70,ORÇAMENTO!$A$10:$I$26,5) -> M3
B74: TIPO ITEM | C74: CODIGO ITEM | D74: DESCRIÇÃO ITEM | E74: UNIDADE ITEM | F74: COEFICIENTE | G74: PRECO UNITARIO | H74: CUSTO TOTAL
B75: COMPOSICAO | C75: 5847 | D75: TRATOR DE ESTEIRAS, POTÊNCIA 170 HP, PESO OPERACIONAL 19 T, CAÇAMBA 5,2 M3 - CHP DIURNO | E75: CHP | F75: 0,0048000 | G75: 274,81 | H75: =ROUNDDOWN(F75*G75,2) -> 1.31
B76: COMPOSICAO | C76: 5849 | D76: TRATOR DE ESTEIRAS, POTÊNCIA 170 HP, PESO OPERACIONAL 19 T, CAÇAMBA 5,2 M3 - CHI DIURNO | E76: CHI | F76: 0,0082000 | G76: 74,36 | H76: 0.6
B77: COMPOSICAO | C77: 88316 | D77: SERVENTE COM ENCARGOS COMPLEMENTARES | E77: H | F77: 0,0131000 | G77: 18,02 | H77: 0.23
B78: PRODUÇÃO DA EQUIPE | E78: 1 | F78: CUSTO | H78: =SUM(H75:H77) -> 2.14
B79: TOTAL | H79: =H78/E78 -> 2.14
B80: BDI % | H80: =1+$M$1 -> 1.1851
B81: TOTAL DO SERVIÇO - R$ | H81: =H79*H80 -> 2.536114
A83: 7 | B83: CODEVASF | E83: COMPOSIÇÃO DE PREÇO UNITÁRIO | I83: =H93 -> 3.83 | J83: =H95 -> 4.538933
B84: OBRA: | C84: =$C$2 -> PAVIMENTAÇÃO EM POLIÉDRICO - COMUNIDADE DOS PEROBAS - PERDIGÃO / MG | G84: DATA: | H84: =$H$2 -> OUTUBRO/2022
B85: SERVIÇO: | C85: =VLOOKUP(A83,ORÇAMENTO!$A$10:$I$26,3) -> CARGA, MANOBRA E DESCARGA DE SOLOS E MATERIAIS GRANULARES EM CAMINHÃO BASCULANTE - DESCARGA LIVRE | E85: SINAPI | F85: =VLOOKUP(A83,ORÇAMENTO!$A$10:$I$26,4) -> 100976 | G85: UNIDADE: | H85: =VLOOKUP(A83,ORÇAMENTO!$A$10:$I$26,5) -> M3
B87: TIPO ITEM | C87: CODIGO ITEM | D87: DESCRIÇÃO ITEM | E87: UNIDADE ITEM | F87: COEFICIENTE | G87: PRECO UNITARIO | H87: CUSTO TOTAL
B88: COMPOSICAO | C88: 5940 | D88: PÁ CARREGADEIRA SOBRE RODAS, POTÊNCIA LÍQUIDA 128 HP, CAPACIDADE DA CAÇAMBA 1,7 A 2,8 M3, PESO OPERACIONAL 11632 KG - CHP DIURNO | E88: CHP | F88: 0.0043 | G88: 211,10 | H88: =ROUNDDOWN(F88*G88,2) -> 0.9
B89: COMPOSICAO | C89: 5942 | D89: PÁ CARREGADEIRA SOBRE RODAS, POTÊNCIA LÍQUIDA 128 HP, CAPACIDADE DA CAÇAMBA 1,7 A 2,8 M3, PESO OPERACIONAL 11632 KG - CHI DIURNO | E89: CHI | F89: 0.0034 | G89: 77,00 | H89: 0.26
B90: COMPOSICAO | C90: 89883 | D90: CAMINHÃO BASCULANTE 18 M3, COM CAVALO MECÂNICO DE CAPACIDADE MÁXIMA DE TRAÇÃO COMBINADO DE 45000 KG, POTÊNCIA 330 CV, INCLUSIVE SEMIREBOQUE COM CAÇAMBA METÁLICA - CHP DIURNO | E90: CHP | F90: 0.0053 | G90: 378,01 | H90: 2
B91: COMPOSICAO | C91: 89884 | D91: CAMINHÃO BASCULANTE 18 M3, COM CAVALO MECÂNICO DE CAPACIDADE MÁXIMA DE TRAÇÃO COMBINADO DE 45000 KG, POTÊNCIA 330 CV, INCLUSIVE SEMIREBOQUE COM CAÇAMBA METÁLICA - CHI DIURNO | E91: CHI | F91: 0,0095000 | G91: 70,93 | H91: 0.67
B92: PRODUÇÃO DA EQUIPE | E92: 1 | F92: CUSTO | H92: =SUM(H88:H91) -> 3.83
B93: TOTAL | H93: =H92/E92 -> 3.83
B94: BDI % | H94: =1+$M$1 -> 1.1851
B95: TOTAL DO SERVIÇO - R$ | H95: =H93*H94 -> 4.538933
A97: 8 | B97: CODEVASF | E97: COMPOSIÇÃO DE PREÇO UNITÁRIO | I97: =H110 -> 2.22 | J97: =H112 -> 2.630922
B98: OBRA: | C98: =$C$2 -> PAVIMENTAÇÃO EM POLIÉDRICO - COMUNIDADE DOS PEROBAS - PERDIGÃO / MG | G98: DATA: | H98: =$H$2 -> OUTUBRO/2022
B99: SERVIÇO: | C99: =VLOOKUP(A97,ORÇAMENTO!$A$10:$I$26,3) -> REGULARIZAÇÃO E COMPACTAÇÃO DE SUBLEITO | E99: SINAPI | F99: =VLOOKUP(A97,ORÇAMENTO!$A$10:$I$26,4) -> 100576 | G99: UNIDADE: | H99: =VLOOKUP(A97,ORÇAMENTO!$A$10:$I$26,5) -> M2
B101: TIPO ITEM | C101: CODIGO ITEM | D101: DESCRIÇÃO ITEM | E101: UNIDADE ITEM | F101: COEFICIENTE | G101: PRECO UNITARIO | H101: CUSTO TOTAL
B102: COMPOSICAO | C102: 5901 | D102: CAMINHÃO PIPA 10.000 L TRUCADO, PESO BRUTO TOTAL 23.000 KG, CARGA ÚTIL MÁXIMA 15.935 KG, DISTÂNCIA ENTRE EIXOS 4,8 M, POTÊNCIA 230 CV, INCLUSIVE TANQUE DE AÇO PARA TRANSPORTE DE ÁGUA - CHP DIURNO | E102: CHP | F102: 0,0010000 | G102: 326,66 | H102: =ROUNDDOWN(F102*G102,2) -> 0.32
B103: COMPOSICAO | C103: 5903 | D103: CAMINHÃO PIPA 10.000 L TRUCADO, PESO BRUTO TOTAL 23.000 KG, CARGA ÚTIL MÁXIMA 15.935 KG, DISTÂNCIA ENTRE EIXOS 4,8 M, POTÊNCIA 230 CV, INCLUSIVE TANQUE DE AÇO PARA TRANSPORTE DE ÁGUA - CHI DIURNO | E103: CHI | F103: 0,0070000 | G103: 54,39 | H103: 0.38
B104: COMPOSICAO | C104: 5932 | D104: MOTONIVELADORA POTÊNCIA BÁSICA LÍQUIDA (PRIMEIRA MARCHA) 125 HP, PESO BRUTO 13032 KG, LARGURA DA LÂMINA DE 3,7 M - CHP DIURNO | E104: CHP | F104: 0,0001000 | G104: 256,86 | H104: 0.02
B105: COMPOSICAO | C105: 5934 | D105: MOTONIVELADORA POTÊNCIA BÁSICA LÍQUIDA (PRIMEIRA MARCHA) 125 HP, PESO BRUTO 13032 KG, LARGURA DA LÂMINA DE 3,7 M - CHI DIURNO | E105: CHI | F105: 0,0080000 | G105: 83,44 | H105: 0.66
B106: COMPOSICAO | C106: 73436 | D106: ROLO COMPACTADOR VIBRATÓRIO PÉ DE CARNEIRO PARA SOLOS, POTÊNCIA 80 HP, PESO OPERACIONAL SEM/COM LASTRO 7,4 / 8,8 T, LARGURA DE TRABALHO 1,68 M - CHP DIURNO | E106: CHP | F106: 0,0020000 | G106: 196,72 | H106: 0.39
B107: COMPOSICAO | C107: 88316 | D107: SERVENTE COM ENCARGOS COMPLEMENTARES | E107: H | F107: 0,0080000 | G107: 18,02 | H107: 0.14
B108: COMPOSICAO | C108: 93244 | D108: ROLO COMPACTADOR VIBRATÓRIO PÉ DE CARNEIRO PARA SOLOS, POTÊNCIA 80 HP, PESO OPERACIONAL SEM/COM LASTRO 7,4 / 8,8 T, LARGURA DE TRABALHO 1,68 M - CHI DIURNO | E108: CHI | F108: 0,0060000 | G108: 52,17 | H108: 0.31
B109: PRODUÇÃO DA EQUIPE | E109: 1 | F109: CUSTO | H109: =SUM(H102:H108) -> 2.22
B110: TOTAL | H110: =H109/E109 -> 2.22
B111: BDI % | H111: =1+$M$1 -> 1.1851
B112: TOTAL DO SERVIÇO - R$ | H112: =H110*H111 -> 2.630922
A114: 9 | B114: CODEVASF | E114: COMPOSIÇÃO DE PREÇO UNITÁRIO | I114: =H129 -> 10.57 | J114: =H131 -> 12.526507
B115: OBRA: | C115: =$C$2 -> PAVIMENTAÇÃO EM POLIÉDRICO - COMUNIDADE DOS PEROBAS - PERDIGÃO / MG | G115: DATA: | H115: =$H$2 -> OUTUBRO/2022
B116: SERVIÇO: | C116: =VLOOKUP(A114,ORÇAMENTO!$A$10:$I$26,3) -> EXECUÇÃO E COMPACTAÇÃO DE BASE E OU SUB BASE PARA PAVIMENTAÇÃO DE CASCALHO - EXCLUSIVE SOLO, ESCAVAÇÃO, CARGA E TRANSPORTE. | E116: SINAPI | F116: =VLOOKUP(A114,ORÇAMENTO!$A$10:$I$26,4) -> 96388 | G116: UNIDADE: | H116: =VLOOKUP(A114,ORÇAMENTO!$A$10:$I$26,5) -> M3
B118: TIPO ITEM | C118: CODIGO ITEM | D118: DESCRIÇÃO ITEM | E118: UNIDADE ITEM | F118: COEFICIENTE | G118: PRECO UNITARIO | H118: CUSTO TOTAL
B119: COMPOSICAO | C119: 5684 | D119: ROLO COMPACTADOR VIBRATÓRIO DE UM CILINDRO AÇO LISO, POTÊNCIA 80 HP, PESO OPERACIONAL MÁXIMO 8,1 T, IMPACTO DINÂMICO 16,15 / 9,5 T, LARGURA DE TRABALHO 1,68 M - CHP DIURNO | E119: CHP | F119: 0,0030000 | G119: 152,82 | H119: =ROUNDDOWN(F119*G119,2) -> 0.45
B120: COMPOSICAO | C120: 5685 | D120: ROLO COMPACTADOR VIBRATÓRIO DE UM CILINDRO AÇO LISO, POTÊNCIA 80 HP, PESO OPERACIONAL MÁXIMO 8,1 T, IMPACTO DINÂMICO 16,15 / 9,5 T, LARGURA DE TRABALHO 1,68 M - CHI DIURNO | E120: CHI | F120: 0,0230000 | G120: 50,98 | H120: 1.17
B121: COMPOSICAO | C121: 5901 | D121: CAMINHÃO PIPA 10.000 L TRUCADO, PESO BRUTO TOTAL 23.000 KG, CARGA ÚTIL MÁXIMA 15.935 KG, DISTÂNCIA ENTRE EIXOS 4,8 M, POTÊNCIA 230 CV, INCLUSIVE TANQUE DE AÇO PARA TRANSPORTE DE ÁGUA - CHP DIURNO | E121: CHP | F121: 0,0040000 | G121: 326,66 | H121: 1.3
B122: COMPOSICAO | C122: 5903 | D122: CAMINHÃO PIPA 10.000 L TRUCADO, PESO BRUTO TOTAL 23.000 KG, CARGA ÚTIL MÁXIMA 15.935 KG, DISTÂNCIA ENTRE EIXOS 4,8 M, POTÊNCIA 230 CV, INCLUSIVE TANQUE DE AÇO PARA TRANSPORTE DE ÁGUA - CHI DIURNO | E122: CHI | F122: 0,0220000 | G122: 54,39 | H122: 1.19
B123: COMPOSICAO | C123: 5932 | D123: MOTONIVELADORA POTÊNCIA BÁSICA LÍQUIDA (PRIMEIRA MARCHA) 125 HP, PESO BRUTO 13032 KG, LARGURA DA LÂMINA DE 3,7 M - CHP DIURNO | E123: CHP | F123: 0,0080000 | G123: 256,86 | H123: 2.05
B124: COMPOSICAO | C124: 5934 | D124: MOTONIVELADORA POTÊNCIA BÁSICA LÍQUIDA (PRIMEIRA MARCHA) 125 HP, PESO BRUTO 13032 KG, LARGURA DA LÂMINA DE 3,7 M - CHI DIURNO | E124: CHI | F124: 0,0190000 | G124: 83,44 | H124: 1.58
B125: COMPOSICAO | C125: 88316 | D125: SERVENTE COM ENCARGOS COMPLEMENTARES | E125: H | F125: 0,0260000 | G125: 18,02 | H125: 0.46
B126: COMPOSICAO | C126: 96463 | D126: ROLO COMPACTADOR DE PNEUS, ESTATICO, PRESSAO VARIAVEL, POTENCIA 110 HP, PESO SEM/COM LASTRO 10,8/27 T, LARGURA DE ROLAGEM 2,30 M - CHP DIURNO | E126: CHP | F126: 0,0040000 | G126: 202,77 | H126: 0.81
B127: COMPOSICAO | C127: 96464 | D127: ROLO COMPACTADOR DE PNEUS, ESTATICO, PRESSAO VARIAVEL, POTENCIA 110 HP, PESO SEM/COM LASTRO 10,8/27 T, LARGURA DE ROLAGEM 2,30 M - CHI DIURNO | E127: CHI | F127: 0,0220000 | G127: 70,94 | H127: 1.56
B128: PRODUÇÃO DA EQUIPE | E128: 1 | F128: CUSTO | H128: =SUM(H119:H127) -> 10.57
B129: TOTAL | H129: =H128/E128 -> 10.57
B130: BDI % | H130: =1+$M$1 -> 1.1851
B131: TOTAL DO SERVIÇO - R$ | H131: =H129*H130 -> 12.526507
A133: 10 | B133: CODEVASF | E133: COMPOSIÇÃO DE PREÇO UNITÁRIO | I133: =H146 -> 40.72 | J133: =H148 -> 48.257272
B134: OBRA: | C134: =$C$2 -> PAVIMENTAÇÃO EM POLIÉDRICO - COMUNIDADE DOS PEROBAS - PERDIGÃO / MG | G134: DATA: | H134: =$H$2 -> OUTUBRO/2022
B135: SERVIÇO: | C135: =VLOOKUP(A133,ORÇAMENTO!$A$10:$I$26,3) -> EXECUÇÃO DE PAVIMENTO EM PEDRAS POLIÉDRICAS, REJUNTAMENTO COM PÓ DE PEDRA | E135: SINAPI | F135: =VLOOKUP(A133,ORÇAMENTO!$A$10:$I$26,4) -> 101170 | G135: UNIDADE: | H135: =VLOOKUP(A133,ORÇAMENTO!$A$10:$I$26,5) -> M2
B137: TIPO ITEM | C137: CODIGO ITEM | D137: DESCRIÇÃO ITEM | E137: UNIDADE ITEM | F137: COEFICIENTE | G137: PRECO UNITARIO | H137: CUSTO TOTAL
B138: INSUMO | C138: 367 | D138: AREIA GROSSA - POSTO JAZIDA/FORNECEDOR (RETIRADO NA JAZIDA, SEM TRANSPORTE) | E138: M3 | F138: 0,1140000 | G138: 100 | H138: =ROUNDDOWN(F138*G138,2) -> 11.4
B139: INSUMO | C139: 4741 | D139: PO DE PEDRA (POSTO PEDREIRA/FORNECEDOR, SEM FRETE) | E139: M3 | F139: 0,0440000 | G139: 75 | H139: 3.3
B140: COMPOSICAO | C140: 5684 | D140: ROLO COMPACTADOR VIBRATÓRIO DE UM CILINDRO AÇO LISO, POTÊNCIA 80 HP, PESO OPERACIONAL MÁXIMO 8,1 T, IMPACTO DINÂMICO 16,15 / 9,5 T, LARGURA DE TRABALHO 1,68 M - CHP DIURNO | E140: CHP | F140: 0,0031000 | G140: 153,29 | H140: 0.47
B141: COMPOSICAO | C141: 5685 | D141: ROLO COMPACTADOR VIBRATÓRIO DE UM CILINDRO AÇO LISO, POTÊNCIA 80 HP, PESO OPERACIONAL MÁXIMO 8,1 T, IMPACTO DINÂMICO 16,15 / 9,5 T, LARGURA DE TRABALHO 1,68 M - CHI DIURNO | E141: CHI | F141: 0,0839000 | G141: 54,31 | H141: 4.55
B142: INSUMO | C142: 13186 | D142: PEDRA GNAISSE IRREGULAR, TIPO CALÇADINHA, FAIXA GRANULOMETRICA 100 A 150 MM PARA PAVIMENTACAO OU CALCAMENTO POLIEDRICO, POSTO PEDREIRA / FORNECEDOR (SEM FRETE) | E142: M3 | F142: 0,1190000 | G142: =73*1.3 -> 94.9 | H142: 11.29
B143: COMPOSICAO | C143: 88260 | D143: CALCETEIRO COM ENCARGOS COMPLEMENTARES | E143: H | F143: 0,2609000 | G143: 19,23 | H143: 5.01
B144: COMPOSICAO | C144: 88316 | D144: SERVENTE COM ENCARGOS COMPLEMENTARES | E144: H | F144: 0,2609000 | G144: 18,02 | H144: 4.7
B145: PRODUÇÃO DA EQUIPE | E145: 1 | F145: CUSTO | H145: =SUM(H138:H144) -> 40.72
B146: TOTAL | H146: =H145/E145 -> 40.72
B147: BDI % | H147: =1+$M$1 -> 1.1851
B148: TOTAL DO SERVIÇO - R$ | H148: =H146*H147 -> 48.257272
A150: 11 | B150: CODEVASF | E150: COMPOSIÇÃO DE PREÇO UNITÁRIO | I150: =H159 -> 1.02 | J150: =H161 -> 1.208802
B151: OBRA: | C151: =$C$2 -> PAVIMENTAÇÃO EM POLIÉDRICO - COMUNIDADE DOS PEROBAS - PERDIGÃO / MG | G151: DATA: | H151: =$H$2 -> OUTUBRO/2022
B152: SERVIÇO: | C152: =VLOOKUP(A150,ORÇAMENTO!$A$10:$I$26,3) -> TRANSPORTE COM CAMINHÃO BASCULANTE, EM VIA EM REVESTIMENTO PRIMÁRIO | E152: SINAPI | F152: =VLOOKUP(A150,ORÇAMENTO!$A$10:$I$26,4) -> 95426 | G152: UNIDADE: | H152: =VLOOKUP(A150,ORÇAMENTO!$A$10:$I$26,5) -> M3XKM
B154: TIPO ITEM | C154: CODIGO ITEM | D154: DESCRIÇÃO ITEM | E154: UNIDADE ITEM | F154: COEFICIENTE | G154: PRECO UNITARIO | H154: CUSTO TOTAL
B155: COMPOSICAO | C155: 89883 | D155: CAMINHÃO BASCULANTE 18 M3, COM CAVALO MECÂNICO DE CAPACIDADE MÁXIMA DE TRAÇÃO COMBINADO DE 45000 KG, POTÊNCIA 330 CV, INCLUSIVE SEMIREBOQUE COM CAÇAMBA METÁLICA | E155: CHP | F155: 0.0025 | G155: 378,01 | H155: =ROUNDDOWN(F155*G155,2) -> 0.94
B156: COMPOSICAO | C156: 89884 | D156: CAMINHÃO BASCULANTE 18 M3, COM CAVALO MECÂNICO DE CAPACIDADE MÁXIMA DE TRAÇÃO COMBINADO DE 45000 KG, POTÊNCIA 330 CV, INCLUSIVE SEMIREBOQUE COM CAÇAMBA METÁLICA | E156: CHI | F156: 0.0012 | G156: 70,93 | H156: 0.08
H157: =F157*G157 -> 0
B158: PRODUÇÃO DA EQUIPE | E158: 1 | F158: CUSTO | H158: =SUM(H155:H157) -> 1.02
B159: TOTAL | H159: =H158/E158 -> 1.02
B160: BDI % | H160: =1+$M$1 -> 1.1851
B161: TOTAL DO SERVIÇO - R$ | H161: =H159*H160 -> 1.208802
A163: 12 | B163: CODEVASF | E163: COMPOSIÇÃO DE PREÇO UNITÁRIO | I163: =H171 -> 0.73 | J163: =H173 -> 0.865123
B164: OBRA: | C164: =$C$2 -> PAVIMENTAÇÃO EM POLIÉDRICO - COMUNIDADE DOS PEROBAS - PERDIGÃO / MG | G164: DATA: | H164: =$H$2 -> OUTUBRO/2022
B165: SERVIÇO: | C165: =VLOOKUP(A163,ORÇAMENTO!$A$10:$I$26,3) -> TRANSPORTE COM CAMINHÃO BASCULANTE, EM VIA PAVIMENTADA | E165: SINAPI | F165: =VLOOKUP(A163,ORÇAMENTO!$A$10:$I$26,4) -> 95427 | G165: UNIDADE: | H165: =VLOOKUP(A163,ORÇAMENTO!$A$10:$I$26,5) -> M3XKM
B167: TIPO ITEM | C167: CODIGO ITEM | D167: DESCRIÇÃO ITEM | E167: UNIDADE ITEM | F167: COEFICIENTE | G167: PRECO UNITARIO | H167: CUSTO TOTAL
B168: COMPOSICAO | C168: 89883 | D168: CAMINHÃO BASCULANTE 18 M3, COM CAVALO MECÂNICO DE CAPACIDADE MÁXIMA DE TRAÇÃO COMBINADO DE 45000 KG, POTÊNCIA 330 CV, INCLUSIVE SEMIREBOQUE COM CAÇAMBA METÁLICA - CHP DIURNO | E168: CHP | F168: 0.0018 | G168: 378,01 | H168: =ROUNDDOWN(F168*G168,2) -> 0.68
B169: COMPOSICAO | C169: 89884 | D169: CAMINHÃO BASCULANTE 18 M3, COM CAVALO MECÂNICO DE CAPACIDADE MÁXIMA DE TRAÇÃO COMBINADO DE 45000 KG, POTÊNCIA 330 CV, INCLUSIVE SEMIREBOQUE COM CAÇAMBA METÁLICA - CHI DIURNO | E169: CHI | F169: 0,0008000 | G169: 70,93 | H169: 0.05
B170: PRODUÇÃO DA EQUIPE | E170: 1 | F170: CUSTO | H170: =SUM(H168:H169) -> 0.73
B171: TOTAL | H171: =H170/E170 -> 0.73
B172: BDI % | H172: =1+$M$1 -> 1.1851
B173: TOTAL DO SERVIÇO - R$ | H173: =H171*H172 -> 0.865123
A175: 13 | B175: CODEVASF | E175: COMPOSIÇÃO DE PREÇO UNITÁRIO | I175: =H189 -> 47.96 | J175: =H191 -> 56.837396
B176: OBRA: | C176: =$C$2 -> PAVIMENTAÇÃO EM POLIÉDRICO - COMUNIDADE DOS PEROBAS - PERDIGÃO / MG | G176: DATA: | H176: =$H$2 -> OUTUBRO/2022
B177: SERVIÇO: | C177: =VLOOKUP(A175,ORÇAMENTO!$A$10:$I$26,3) -> GUIA (MEIO-FIO) E SARJETA CONJUGADOS DE CONCRETO, MOLDADA IN LOCO COM EXTRUSORA, 45 CM BASE (15 CM DA GUIA + 30 CM DA SARJETA) X 22 CM ALTURA | E177: SINAPI | F177: =VLOOKUP(A175,ORÇAMENTO!$A$10:$I$26,4) -> 94267 | G177: UNIDADE: | H177: =VLOOKUP(A175,ORÇAMENTO!$A$10:$I$26,5) -> M
B179: TIPO ITEM | C179: CODIGO ITEM | D179: DESCRIÇÃO ITEM | E179: UNIDADE ITEM | F179: COEFICIENTE | G179: PRECO UNITARIO | H179: CUSTO TOTAL
B180: INSUMO | C180: 370 | D180: AREIA MEDIA - POSTO JAZIDA/FORNECEDOR (RETIRADO NA JAZIDA, SEM TRANSPORTE) | E180: M3 | F180: 0,0150000 | G180: 100,00 | H180: =ROUNDDOWN(F180*G180,2) -> 1.5
B181: INSUMO | C181: 94970 | D181: CONCRETO FCK = 20MPA, TRAÇO 1:2,7:3 (EM MASSA SECA DE CIMENTO/ AREIA MÉDIA/ BRITA 1) - PREPARO MECÂNICO COM BETONEIRA | E181: M3 | F181: 0,0630000 | G181: 426.69 | H181: 26.88
B182: COMPOSICAO | C182: 88243 | D182: AJUDANTE ESPECIALIZADO COM ENCARGOS COMPLEMENTARES | E182: H | F182: 0,1090000 | G182: 19,92 | H182: 2.17
B183: COMPOSICAO | C183: 88309 | D183: PEDREIRO COM ENCARGOS COMPLEMENTARES | E183: H | F183: 0,2440000 | G183: 25,14 | H183: 6.13
B184: COMPOSICAO | C184: 88316 | D184: SERVENTE COM ENCARGOS COMPLEMENTARES | E184: H | F184: 0,4870000 | G184: 18,02 | H184: 8.77
B185: COMPOSICAO | C185: 88631 | D185: ARGAMASSA TRAÇO 1:4 (EM VOLUME DE CIMENTO E AREIA MÉDIA ÚMIDA), PREPARO MANUAL | E185: M3 | F185: 0,0030000 | G185: 564,32 | H185: 1.69
B186: COMPOSICAO | C186: 92960 | D186: MÁQUINA EXTRUSORA DE CONCRETO PARA GUIAS E SARJETAS, MOTOR A DIESEL, POTÊNCIA 14 CV - CHP DIURNO | E186: CHP | F186: 0,0180000 | G186: 21,09 | H186: 0.37
B187: COMPOSICAO | C187: 92961 | D187: MÁQUINA EXTRUSORA DE CONCRETO PARA GUIAS E SARJETAS, MOTOR A DIESEL, POTÊNCIA 14 CV - CHI DIURNO | E187: CHI | F187: 0,0910000 | G187: 5,04 | H187: 0.45
B188: PRODUÇÃO DA EQUIPE | E188: 1 | F188: CUSTO | H188: =SUM(H180:H187) -> 47.96
B189: TOTAL | H189: =H188/E188 -> 47.96
B190: BDI % | H190: =1+$M$1 -> 1.1851
B191: TOTAL DO SERVIÇO - R$ | H191: =H189*H190 -> 56.837396

Sheet BDI SERV
B1: DETALHAMENTO DO BDI - SERVIÇOS
B4: Item | C4: Descrição dos Serviços | D4: % | E4: %
D5: PV | E5: CD
B7: 1 | C7: ADMINISTRAÇÃO CENTRAL | E7: 3.8
B8: 1.1 | C8: ESCRITÓRIO CENTRAL
B9: 1.2 | C9: VIAGENS
B10: 1.3 | C10: OUTROS
B12: 2 | C12: IMPOSTOS E TAXAS | D12: =SUM(D13:D16) -> 4.65 | E12: =SUM(E13:E16) -> 5.81
B13: 2.1 | C13: ISS (*) | D13: =2*0.5 -> 1 | E13: =ROUND(D13*1.2515,2) -> 1.25
B14: 2.2 | C14: PIS | D14: 0.65 | E14: 0.81
B15: 2.3 | C15: Cofins | D15: 3 | E15: 3.75
B16: 2.4 | C16: CONTRIBUIÇÃO PREVIDENCIÁRIA SOBRE A RENDA BRUTA | D16: 0 | E16: 0
B18: 3 | C18: TAXA DE RISCO | E18: =SUM(E19:E22) -> 0.82
B19: 3.1 | C19: SEGURO | E19: 0.16
B20: 3.2 | C20: RISCO | E20: 0.5
B21: 3.3 | C21: GARANTIA | E21: 0.16
B23: 4 | C23: DESPESAS FINANCEIRAS | E23: 0.94
B25: 5 | C25: LUCRO | E25: 7
C27: BDI - CALCULADO | E27: =ROUND((((1+(E7+E18)/100)*(1+E23/100)*(1+E25/100)/(1-D12/100)-1)*100),2) -> 18.51
A29: BDI = ((1+((AC+S+R+G)/100))x(1+DF/100)x(1+L/100)/(1-I/100)-1)*100
B31: BDI (CALCULADO): | D31: =ROUND((((1+((E7+E18)/100))*(1+E23/100)*(1+E25/100))/(1-D12/100)-1)*100,2) -> 18.51 | E31: %
A33: (*) ISS CONFORME DECLARAÇÃO DO MUNICÍPIO (EM ANEXO) - ALÍQUOTA DE 2% SOBRE 50% DO VALOR DA NOTA
A37: BDI EM CONFORMIDADE COM OS ACÓRDÃOS Nº 2369/2011 e ACÓRDÃO Nº 2.622/2013 - TCU - PLENÁRIO

Sheet CRONOGRAMA
B1: CRONOGRAMA FÍSICO-FINANCEIRO
B2: OBRA: | C2: =ORÇAMENTO!C5 -> PAVIMENTAÇÃO EM POLIÉDRICO - COMUNIDADE DOS PEROBAS - PERDIGÃO / MG | F2: VALOR: | G2: =ORÇAMENTO!I27 -> 579044.34
F3: PRAZO: | G3: 90 DIAS
B5: ITEM | C5: ETAPAS/DESCRIÇAO | D5: FISICO/ FINANCEIRO | E5: TOTAL ETAPAS | F5: MÊS 1 | G5: MÊS 2 | H5: MÊS 3 | I5: TOTAL
A6: A | B6: =VLOOKUP(A6,ORÇAMENTO!$A$9:$I$27,2) -> 1 | C6: =VLOOKUP(A6,ORÇAMENTO!$A$9:$I$27,3) -> SERVIÇOS PRELIMINARES | D6: FISICO | E6: =ROUND(E7/$G$2,4) -> 0.0473 | F6: 0.4 | G6: 0.3 | H6: 0.3 | I6: =SUM(F6:H6) -> 1
D7: FINANCEIRO | E7: =ORÇAMENTO!I9 -> 27378.93 | F7: =ROUND($E$7*F6,2) -> 10951.57 | G7: 8213.68 | H7: 8213.68 | I7: =SUM(F7:H7) -> 27378.93
A8: B | B8: =VLOOKUP(A8,ORÇAMENTO!$A$9:$I$27,2) -> 2 | C8: =VLOOKUP(A8,ORÇAMENTO!$A$9:$I$27,3) -> PAVIMENTAÇÃO | D8: FISICO | E8: =ROUND(E9/$G$2,4) -> 0.659 | F8: 0.3 | G8: 0.4 | H8: 0.3 | I8: =SUM(F8:H8) -> 1
D9: FINANCEIRO | E9: =ORÇAMENTO!I15 -> 381612.62 | F9: =ROUND($E$9*F8,2) -> 114483.79 | G9: 152645.05 | H9: 114483.79 | I9: 381612.63
A10: C | B10: =VLOOKUP(A10,ORÇAMENTO!$A$9:$I$27,2) -> 3 | C10: =VLOOKUP(A10,ORÇAMENTO!$A$9:$I$27,3) -> TRANSPORTE DE MATERIAIS | D10: FISICO | E10: =ROUND(E11/$G$2,4) -> 0.0987 | F10: 0.5 | G10: 0.5 | I10: 1
D11: FINANCEIRO | E11: =ORÇAMENTO!I22 -> 57173.72 | F11: =ROUND($E$11*F10,2) -> 28586.86 | G11: =ROUND($E$11*G10,2) -> 28586.86 | H11: 0 | I11: 57173.72
A12: D | B12: =VLOOKUP(A12,ORÇAMENTO!$A$9:$I$27,2) -> 4 | C12: =VLOOKUP(A12,ORÇAMENTO!$A$9:$I$27,3) -> DRENAGEM E OBRAS COMPLEMENTARES | D12: FISICO | E12: =ROUND(E13/$G$2,4) -> 0.1949 | F12: 0 | G12: 0.5 | H12: 0.5 | I12: 1
D13: FINANCEIRO | E13: =ORÇAMENTO!I25 -> 112879.07 | F13: =ROUND($E$13*F12,2) -> 0 | G13: =ROUND($E$13*G12,2) -> 56439.54 | H13: =ROUND($E$13*H12,2) -> 56439.54 | I13: 112879.08
B14: TOTAL | D14: FISICO | E14: =SUM(F14:H14) -> 1.000000035 | F14: =F15/E15 -> 0.265993827 | G14: =G15/E15 -> 0.4246395535 | H14: =H15/E15 -> 0.309366654 | I14: =SUM(F14:H14) -> 1.000000035
D15: FINANCEIRO | E15: =E11+E9+E7+E13 -> 579044.34 | F15: =F11+F9+F7+F13 -> 154022.22 | G15: =G11+G9+G7+G13 -> 245885.13 | H15: =H11+H9+H7+H13 -> 179137.01 | I15: =SUM(F15:H15) -> 579044.36
B17: OBSERVAÇÕES:
